Workbook

Sheet 1200A
A1: SECTION 1200 PART A: PRELIMINARY AND GENERAL
A2: ITEM NO | B2: PAY ITEM | C2: DESCRIPTION | F2: UNIT | G2: QTY | H2: RATE | I2: AMOUNT
I3: =+IF(H3*G3=0,"",H3*G3) -> 
A4: 1.1 | B4: PSA 8.3 | C4: SCHEDULED FIXED-CHARGE & VALUE-RELATED ITEMS | I4: =+IF(H4*G4=0,"",H4*G4) -> 
A6: 1.1.1 | B6: PSA 8.3.1 | C6: Contractual Requirements | F6: Sum | G6: 1
A8: 1.1.2 | B8: PSA 8.3.2 | C8: Establishment of facilities on Site
A9: 1.1.2.1 | B9: 8.3.2.1 | C9: Facilities for Engineer
C10: (a) | D10: Furnished offices (1 No.) | F10: Sum | G10: 1
C11: (b) | D11: Telephone | F11: Sum | G11: 1
A13: 1.1.2.2 | B13: 8.3.2.2 | C13: Facilities for Contractor
C14: (a) | D14: Offices & storage sheds | F14: Sum | G14: 1
C15: (e) | D15: Ablution & latrine facilities | F15: Sum | G15: 1
C16: (g) | D16: Water supplies, electric power & communications | F16: Sum | G16: 1
C17: (h) | D17: Dealing with water | F17: Sum | G17: 1
A19: 1.1.3 | B19: 8.3.4 | C19: Removal of site establishment | F19: Sum | G19: 1
A21: 1.2 | B21: 8.4 | C21: SCHEDULED TIME-RELATED ITEMS
A23: 1.2.1 | B23: 8.4.1 | C23: Contractual requirements | F23: Sum | G23: 1
A25: 1.2.2 | B25: 8.4.2 | C25: Operate and maintain facilities on the site for duration of construction excepet where otherwise stated
A27: 1.2.2.1 | B27: 8.4.2.1 | C27: Facilities for Engineer | I27: =+IF(H27*G27=0,"",H27*G27) -> 
C28: (a) | D28: Furnished offices (1 No.) | F28: Sum | G28: 1
C29: (b) | D29: Telephone | F29: Sum | G29: 1
C30: (d) | D30: Survey assistants & materials | F30: Sum | G30: 1
A32: 1.2.2.2 | B32: 8.4.2.2 | C32: Facilities for Contractor
C33: (a) | D33: Offices & storage sheds | F33: Sum | G33: 1
C34: (e) | D34: Ablution & latrine facilities | F34: Sum | G34: 1
C35: (g) | D35: Water supplies, electric power & communications | F35: Sum | G35: 1
C36: (i) | D36: Access | F36: Sum | G36: 1
A38: 1.2.3 | B38: 8.4.3 | C38: Supervision for Duration of Contract | F38: Sum | G38: 1
A40: TOTAL CARRIED FORWARD
A41: SECTION 1200 PART A: PRELIMINARY AND GENERAL
A42: ITEM NO | B42: PAY ITEM | C42: DESCRIPTION | F42: UNIT | G42: QTY | H42: RATE | I42: AMOUNT
A43: TOTAL BROUGHT FORWARD
A44: 1.2.4 | B44: 8.4.4 | C44: Company & head office overhead costs | F44: Sum | G44: 1 | I44: =+IF(H44*G44=0,"",H44*G44) -> 
A46: 1.3 | B46: PSA 8.5 | C46: SUMS STATED PROVISIONALLY BY THE ENGINEER
A48: 1.3.1 | C48: (a) | D48: 4ML Package plant
D49: 1) | E49: Nominated sub-contractor for the supply, installation & commissioning of the package plant | F49: Stated Sum | G49: 1 | H49: R25,000,000.00 | I49: =H49*G49 -> R25,000,000.00
D51: 2) | E51: Overheads, charges & profit on a)1) above max limit 2.5%. | F51: % | H51: =I49 -> R25,000,000.00
A54: 1.3.2 | C54: (b) | D54: Water Use License
D55: 1) | E55: Nominated service provider for the screening, investigation, application & obtaining a record of decision for the WUL | F55: Stated Sum | G55: 1 | H55: R300,000.00 | I55: =H55*G55 -> R300,000.00
D57: 2) | E57: Overheads, charges & profit on b)1) above | F57: % | H57: =I55 -> R300,000.00 | I57: =+IF(H57*G57=0,"",H57*G57) -> 
A60: 1.3.3 | C60: (c) | D60: Community Liaison Officers | I60: =+IF(H60*G60=0,"",H60*G60) -> 
D61: 1) | E61: Provision for CLO Salary | F61: PC.Sum | G61: 1 | H61: =10000*12 -> R120,000.00 | I61: =+IF(H61*G61=0,"",H61*G61) -> R120,000.00
D62: 2) | E62: Provison for CLO Cellular Phone | F62: PC.Sum | G62: 1 | H62: R10,000.00 | I62: =H62*G62 -> R10,000.00
D63: 3) | E63: Cost of Cellular Phone Usage for CLO | F63: PC.Sum | G63: 1 | H63: =2000*12 -> R24,000.00 | I63: =H63*G63 -> R24,000.00
D64: 4) | E64: Overheads, charges & profit on c)1),2) and 3) above | F64: % | H64: =SUM(I61:I63) -> R154,000.00 | I64: =+IF(H64*G64=0,"",H64*G64) -> 
C67: (d) | D67: Portal frames & sheeting material
D68: 1) | E68: Portal frames to match existing for the extension of the package plant building, including insulation & sheeting | F68: Stated Sum | G68: 1 | H68: R120,000.00 | I68: =+IF(H68*G68=0,"",H68*G68) -> R120,000.00
D69: 2) | E69: Overheads, charges & profit on d)1) above | F69: % | H69: =+I68 -> R120,000.00
C71: (e) | D71: Training
D72: 1) | E72: SETA Accredited skills training and student in-service training | F72: Stated Sum | G72: 1 | H72: R200,000.00 | I72: =H72*G72 -> R200,000.00
D73: 2) | E73: Overheads, charges & profit on e)1) above | F73: % | H73: =I72 -> R200,000.00 | I73: =+IF(H73*G73=0,"",H73*G73) -> 
A75: 1.4 | B75: PSA 8.9 | C75: Wayleave | F75: Sum | G75: 1
A77: 1.5 | B77: PSA 8.11 | C77: COMPLIANCE WITH OHS ACT, CONSTRUCTION REGULATIONS 2014 AND OHS SPECIFICATION | F77: Sum | G77: 1
A80: 1.6 | B80: PSA 8.12 | C80: Contract Nameboards | F80: Sum | G80: 1
A82: 1.7 | B82: PSA 8.13 | C82: Environmental Management | F82: Sum | G82: 1
A84: 1.8 | B84: PSA 8.16 | C84: Provision of Security Personnel | F84: Sum | G84: 1
A86: 1.9 | B86: PSA 8.17 | C86: Installation of 2 X WKLn 80/3 pumps, 5.5kW Motor, Electrical Works, Control Panel & All Associated Pipework | F86: Sum | G86: 1
A88: TOTAL CARRIED TO SUMMARY

Sheet 1200C
A1: SECTION 1200 PART C: SITE CLEARANCE
A2: ITEM NO | B2: PAY ITEM | C2: DESCRIPTION | D2: UNIT | E2: QTY | F2: RATE | G2: AMOUNT
G3: =+IF(F3*E3=0,"",F3*E3) -> 
A4: 2.1 | B4: 8.2 | C4: SCHEDULED ITEMS
A6: 2.1.1 | B6: 8.2.1 | C6: Clear and grub | D6: ha | E6: 0.3
A8: 2.1.2 | B8: 8.2.3 | C8: Remove & grub all trees and tree stumps regardless of girth | D8: ha | E8: 0.3
A11: 2.1.3 | B11: PSC 8.2.11 | C11: Remove topsoil to spoil site furnished by Contractor | D11: m³ | E11: 50 | G11: =+IF(F11*E11=0,"",F11*E11) -> 
A14: 2.1.4 | B14: PSC 8.2.12 | C14: Demolishing and Removal of Existing Concrete Structures
C16: a) Reinforced Concrete (0 to 200 mm thick) | D16: m³ | E16: 50 | G16: =+IF(F16*E16=0,"",F16*E16) -> 
G39: =+IF(F39*E39=0,"",F39*E39) -> 
A40: TOTAL CARRIED TO SUMMARY

Sheet 1200D
A1: SECTION 1200 PART D: EARTHWORKS (BULK)
A2: ITEM NO | B2: PAY ITEM | C2: DESCRIPTION | F2: UNIT | G2: QTY | H2: RATE | I2: AMOUNT
I3: =+IF(H3*G3=0,"",H3*G3) -> 
A4: 3.1 | B4: 8.3 | C4: SCHEDULED ITEMS | I4: =+IF(H4*G4=0,"",H4*G4) -> 
A6: 3.1.1 | B6: PSD 8.3.2 | C6: Bulk Excavation
C7: (a) | D7: Excavate in all materials and use for embankment, backfill or dispose as ordered
D9: 1) | E9: Extension to package plant house | F9: m3 | G9: 50
A11: 3.1.2 | B11: PSD 8.3.4 | C11: Importing of materials
C12: (a) | D12: Extra-over for importation of materials from commercial sources or from borrow pits
D14: 1) | E14: G7 Under surface bed | F14: m³ | G14: 50 | I14: =+IF(H14*G14=0,"",H14*G14) -> 
A16: 3.1.3 | B16: PSD 8.3.8 | C16: Existing Services
B17: 8.3.8.1 | C17: Hand excavation for locating and exposing existing services: | I17: =+IF(H17*G17=0,"",H17*G17) -> 
C19: (a) | D19: In Roadways | F19: m³ | G19: 50 | I19: Rate Only
C20: (b) | D20: In all other areas | F20: m³ | G20: 50 | I20: =+IF(H20*G20=0,"",H20*G20) -> 
I24: =+IF(H24*G24=0,"",H24*G24) -> 
I26: =+IF(H26*G26=0,"",H26*G26) -> 
I30: =+IF(H30*G30=0,"",H30*G30) -> 
I33: =+IF(H33*G33=0,"",H33*G33) -> 
I38: =+IF(H38*G38=0,"",H38*G38) -> 
A41: TOTAL CARRIED TO SUMMARY

Sheet 1200DB
A1: SECTION 1200 PART DB: EARTHWORKS (PIPE TRENCHES)
A2: ITEM NO | B2: PAY ITEM | C2: DESCRIPTION | G2: UNIT | H2: QTY | I2: RATE | J2: AMOUNT
J3: =+IF(I3*H3=0,"",I3*H3) -> 
A4: 4.1 | B4: PSDB 8,3 | C4: SCHEDULED ITEMS | J4: =+IF(I4*H4=0,"",I4*H4) -> 
A6: 4.1.1 | B6: PSDB 8.3.2 | C6: Excavation
C7: a) | D7: Excavate in all materials for trenches, backfill, compact and dispose of surplus material for:
D10: 1) | E10: 110 to 300 mm diameter
E11: i) | F11: 0 to 1m depth | G11: m3 | H11: 150 | J11: =+IF(I11*H11=0,"",I11*H11) -> 
E12: ii) | F12: 1 to 2m depth | G12: m3 | H12: 2800
E13: iii) | F13: 2 to 3m depth | G13: m3 | H13: 20
C15: b) | D15: Extra-over for subitem a) for excavating in:
D16: 1) | F16: Intermediate material | G16: m3 | H16: =SUM(H11:H13)*0.2 -> 594 | J16: Rate Only
D17: 2) | F17: Hard rock material | G17: m3 | H17: =0.5*H16 -> 297 | J17: Rate Only
D18: 3) | F18: Backfill stabilized with 5% cement where directed by the Engineer | G18: m³ | H18: 100 | J18: Rate Only
J20: =+IF(I20*H20=0,"",I20*H20) -> 
A21: 4.1.2 | B21: 8.3.3 | C21: Excavation Ancillaries
A22: 4.1.2.1 | B22: 8.3.3.1 | C22: Makeup deficiency in backfill material
C23: (a) | D23: from other necessary excavations on site | G23: m³ | H23: 100 | J23: Rate Only
C24: (c) | D24: By importation from commercial or off-site sources selected by Contractor | G24: m³ | H24: 100 | J24: Rate Only
A42: TOTAL CARRIED TO SUMMARY

Sheet 1200DM
A1: SECTION 1200 PART DM: EARTHWORKS (ROADS,SUBGRADE)
A2: ITEM NO | B2: PAY ITEM | C2: DESCRIPTION | F2: UNIT | G2: QTY | H2: RATE | I2: AMOUNT
I3: =+IF(H3*G3=0,"",H3*G3) -> 
A4: 5.1 | B4: PSDM 8.3 | C4: SCHEDULED ITEMS
A6: 5.1.1 | B6: PSDM 8.3.3 | C6: Treatment of Road Bed
C7: (a) | D7: Road-Bed Preparation and Compaction of Material to:
D9: 1) | E9: minimum of 90% MOD AASHTO density | F9: m³ | G9: 70
I41: =+IF(H41*G41=0,"",H41*G41) -> 
A42: TOTAL CARRIED TO SUMMARY

Sheet 1200G
A1: SECTION 1200 PART G: CONCRETE (STRUCTURAL)
A2: ITEM NO | B2: PAY ITEM | C2: DESCRIPTION | F2: UNIT | G2: QTY | H2: RATE | I2: AMOUNT
C3: NEW PACKAGE PLANT BUILDING WORKS | I3: =+IF(H3*G3=0,"",H3*G3) -> 
A4: 6.1 | B4: 8.2 | C4: SCHEDULED FORMWORK ITEMS | I4: =+IF(H4*G4=0,"",H4*G4) -> 
I5: =+IF(H5*G5=0,"",H5*G5) -> 
A6: 6.1.1 | B6: 8.2.1 | C6: Rough | I6: =+IF(H6*G6=0,"",H6*G6) -> 
C7: (a) | D7: Extension to package plant room
D8: 1) | E8: Pad footing (including stub column) | F8: m2 | G8: 5 | I8: =+IF(H8*G8=0,"",H8*G8) -> 
D9: 2) | E9: Edge beam | F9: m2 | G9: 5 | I9: =+IF(H9*G9=0,"",H9*G9) -> 
D10: 3) | E10: Surfacebed | F10: m2 | G10: 10 | I10: =+IF(H10*G10=0,"",H10*G10) -> 
D11: 4) | E11: Ramp | F11: m² | G11: 5 | I11: =+IF(H11*G11=0,"",H11*G11) -> 
A13: 6.2 | B13: 8.3 | C13: SCHEDULED REINFORCEMENT ITEMS | I13: =+IF(H13*G13=0,"",H13*G13) -> 
I14: =+IF(H14*G14=0,"",H14*G14) -> 
A15: 6.2.1 | B15: 8.3.1 | C15: High Tensile Steel Bars
C16: (a) | D16: Extension to package plant building | I16: =+IF(H16*G16=0,"",H16*G16) -> 
D17: 1) | E17: Pad footings | F17: t | G17: 1
D18: 2) | E18: Stub columns | F18: t | G18: 0.5
D19: 3) | E19: Edge beams | F19: t | G19: 1
A21: 6.2.2 | B21: PSG 8.3.2 | C21: High tensile welded mesh
C22: (a) | D22: Ref 245 | F22: m² | G22: 150
A24: 6.3 | B24: 8.4 | C24: SCHEDULED CONCRETE ITEMS
A26: 6.3.1 | B26: 8.4.2 | C26: Blinding layer in 15MPa concrete | F26: m³ | G26: =0.05*150*1.2 -> 9
A28: 6.3.2 | B28: 8.4.3 | C28: 25/19 Mpa Concrete
C29: (a) | D29: Extension to package plant building
D30: 1) | E30: Pad footings | F30: m3 | G30: 1.5
D31: 2) | E31: Stub columns | F31: m3 | G31: 1.5
D32: 3) | E32: Edge beams | F32: m3 | G32: 5
D33: 4) | E33: Surfacebed | F33: m3 | G33: 40
A35: 6.3.3 | B35: 8.4.4 | C35: Unformed Surface Finishes
C36: (a) | D36: Power-Floated Finish
D37: 1) | E37: Extension to package plant building | F37: m² | G37: 150 | I37: =+IF(H37*G37=0,"",H37*G37) -> 
I48: =+IF(H48*G48=0,"",H48*G48) -> 
A49: TOTAL CARRIED FORWARD
A50: SECTION 1200 PART G: CONCRETE (STRUCTURAL)
A51: ITEM NO | B51: PAY ITEM | C51: DESCRIPTION | F51: UNIT | G51: QTY | H51: RATE | I51: AMOUNT
A52: TOTAL BROUGHT FORWARD
I53: =+IF(H53*G53=0,"",H53*G53) -> 
A54: 6.4 | B54: 8.5 | C54: JOINTS
C55: (a) | D55: Extension to package plant building | I55: =+IF(H55*G55=0,"",H55*G55) -> 
D56: 1) | E56: Saw-cut joint (surface bed) | F56: m | G56: 50
D57: 2) | E57: Isolation joint (surface bed) | F57: m | G57: 50
D58: 3) | E58: Construction joint (between pad & stub column) | F58: m² | G58: 2.5
A61: 6.5 | B61: 8.7 | C61: GROUTING
C62: (a) | D62: Under bases (non shrink) | F62: m³ | G62: 0.1
C64: (b) | D64: HD bolts (Commercial quality M20 bolts embedded 600mm) | F64: No | G64: 8
C67: PUMP HOUSE
A68: 6.6 | B68: 8.2 | C68: SCHEDULED FORMWORK ITEMS
A69: 6.6.1 | B69: 8.2.1 | C69: Rough | I69: =+IF(H69*G69=0,"",H69*G69) -> 
C70: (a) | D70: Surface bed | F70: m2 | G70: 5 | I70: =+IF(H70*G70=0,"",H70*G70) -> 
C71: (b) | D71: Pad footing | F71: m2 | G71: 5 | I71: =+IF(H71*G71=0,"",H71*G71) -> 
A73: 6.6.2 | B73: 8.2.2 | C73: Smooth
C74: (a) | D74: Plinths | F74: m2 | G74: 3 | I74: =+IF(H74*G74=0,"",H74*G74) -> 
C75: (b) | D75: Roof Slab | F75: m2 | G75: 5 | I75: =+IF(H75*G75=0,"",H75*G75) -> 
A77: 6.7 | B77: 8.3 | C77: SCHEDULED REINFORCEMENT ITEMS | I77: =+IF(H77*G77=0,"",H77*G77) -> 
I78: =+IF(H78*G78=0,"",H78*G78) -> 
A79: 6.7.1 | B79: 8.3.1 | C79: High Tensile Steel Bars
C80: (a) | D80: Plinths | F80: t | G80: 0.2 | I80: =+IF(H80*G80=0,"",H80*G80) -> 
C81: (b) | D81: Pad Footings | F81: t | G81: 0.1
A83: 6.7.2 | B83: PSG 8.3.2 | C83: High tensile welded mesh
C84: (a) | D84: Ref 245 | F84: m² | G84: 20
A86: 6.8 | B86: 8.4 | C86: SCHEDULED CONCRETE ITEMS
A88: 6.8.1 | B88: 8.4.2 | C88: Blinding layer in 15MPa concrete | F88: m³ | G88: =0.05*20*1.2 -> 1.2
A90: 6.8.2 | B90: 8.4.3 | C90: 25/19 Mpa Concrete
C91: (a) | D91: Pad footings | F91: m3 | G91: 1
C92: (b) | D92: Surface Bed | F92: m3 | G92: 5
C93: (c) | D93: Plinths | F93: m3 | G93: 0.6
C94: (d) | D94: Roof Slab | F94: m3 | G94: 5
A97: 6.8.3 | B97: 8.4.4 | C97: Unformed Surface Finishes
C98: (a) | D98: Power-Floated Finish | F98: m² | G98: 20 | I98: =+IF(H98*G98=0,"",H98*G98) -> 
I100: =+IF(H100*G100=0,"",H100*G100) -> 
A101: TOTAL CARRIED FORWARD
A102: SECTION 1200 PART G: CONCRETE (STRUCTURAL)
A103: ITEM NO | B103: PAY ITEM | C103: DESCRIPTION | F103: UNIT | G103: QTY | H103: RATE | I103: AMOUNT
A104: TOTAL BROUGHT FORWARD
A105: 6.11 | B105: PSG 8.9 | C105: WATERPROOFING | I105: =+IF(H105*G105=0,"",H105*G105) -> 
C106: (a) | D106: 4mm Torch on Derbigum | F106: m² | G106: 20
C109: GUARD HOUSE
A110: 6.12 | B110: 8.2 | C110: SCHEDULED FORMWORK ITEMS
A111: 6.12.1 | B111: 8.2.1 | C111: Rough | I111: =+IF(H111*G111=0,"",H111*G111) -> 
C112: (a) | D112: Strip Footing | F112: m2 | G112: 15 | I112: =+IF(H112*G112=0,"",H112*G112) -> 
C113: (b) | D113: Surfacebed | F113: m2 | G113: 5 | I113: =+IF(H113*G113=0,"",H113*G113) -> 
A115: 6.13 | B115: 8.3 | C115: SCHEDULED REINFORCEMENT ITEMS | I115: =+IF(H115*G115=0,"",H115*G115) -> 
I116: =+IF(H116*G116=0,"",H116*G116) -> 
A117: 6.13.1 | B117: 8.3.1 | C117: High Tensile Steel Bars
C118: (a) | D118: Strip footings | F118: t | G118: 0.5 | I118: =+IF(H118*G118=0,"",H118*G118) -> 
A120: 6.13.2 | B120: PSG 8.3.2 | C120: High tensile welded mesh
C121: (a) | D121: Ref 245 | F121: m² | G121: 15
A123: 6.14 | B123: 8.4 | C123: SCHEDULED CONCRETE ITEMS
A125: 6.14.1 | B125: 8.4.2 | C125: Blinding layer in 15MPa concrete | F125: m³ | G125: =0.05*15*1.2 -> 0.9
A127: 6.14.2 | B127: 8.4.3 | C127: 25/19 Mpa Concrete
C128: (a) | D128: Strip footings | F128: m3 | G128: 2
C129: (b) | D129: Surfacebed | F129: m3 | G129: 5
A131: 6.14.3 | B131: 8.4.4 | C131: Unformed Surface Finishes
C132: (a) | D132: Power-Floated Finish | F132: m² | G132: 20 | I132: =+IF(H132*G132=0,"",H132*G132) -> 
I170: =+IF(H170*G170=0,"",H170*G170) -> 
A171: TOTAL CARRIED FORWARD
I172: =+IF(H172*G172=0,"",H172*G172) -> 
I196: =+IF(H196*G196=0,"",H196*G196) -> 

Sheet 1200L
A1: SECTION 1200 PART L: MEDIUM PRESSURE PIPELINES
A2: ITEM NO | B2: PAY ITEM | C2: DESCRIPTION | F2: UNIT | G2: QTY | H2: RATE | I2: AMOUNT
I3: =+IF(H3*G3=0,"",H3*G3) -> 
A4: 7.1 | B4: 8.2 | C4: SCHEDULED ITEMS
A6: 7.1.1 | B6: PSL 8.2.1 | C6: Supply, Lay and Bed Pipes Complete with Couplings
C9: a) | D9: 160 mm diameter uPVC PN 16 | F9: m | G9: 650 | I9: =+IF(H9*G9=0,"",H9*G9) -> 
C10: b) | D10: 200 mm diameter uPVC PN 16 | F10: m | G10: 2400
A12: 7.1.2 | B12: 8.2.2 | C12: Extra-over 8.2.1 for the supplying, laying, and bedding of specials complete with couplings
C14: a) | D14: 160x160 mm diameter Tee PN 16 uPVC | F14: No | G14: 2 | I14: =+IF(H14*G14=0,"",H14*G14) -> 
C15: b) | D15: 160 mm diameter 22.5° Bend PN 16 | F15: No | G15: 1
C16: c) | D16: 160 mm diameter 45° Bend PN 16 | F16: No | G16: 4
C17: d) | D17: 160 mm diameter 90° Bend PN 16 | F17: No | G17: 4
C18: e) | D18: 160 mm diameter End Cap PN 16 | F18: No | G18: 2
C19: f) | D19: 160 x 80 mm Fire Hydrant Tee | F19: No | G19: 1
C20: g) | D20: 200 mm diameter 11.25° Bend PN 16 | F20: No | G20: 6
C21: h) | D21: 200 mm diameter 22.5° Bend PN 16 | F21: No | G21: 4
C22: i) | D22: 200 mm diameter 45° Bend PN 16 | F22: No | G22: 5
C23: j) | D23: 200 mm diameter 90° Bend PN 16 | F23: No | G23: 4
C24: k) | D24: Clamp Saddle 110 x 20 mm PN 16 | F24: No | G24: 1
C25: l) | D25: Provisional Sum for Miscellaneous Fittings | F25: Prov. Sum | G25: 1
A27: 7.1.3 | B27: 8.2.3 | C27: Extra-over 8.2.1 for the supplying, fixing, and Bedding Valves
C29: a) | D29: 160 mm Diameter Gate Valve PN 16 | F29: No | G29: 2
A31: 7.1.3 | B31: PSL 8.2.11 | C31: Anchor/Thrust Blocks and Pedestals
C32: b) | D32: 1) | E32: Concrete | F32: m³ | G32: 5
D33: 2) | E33: Formwork | F33: m² | G33: 5
A35: 7.1.4 | B35: PSL 8.2.13 | C35: Valve and hydrant chambers etc.
C36: a) | D36: Valve chamber | F36: No. | G36: 2
A38: 7.1.5 | B38: PSL 8.2.16 | C38: Connection to existing main supply pipe | F38: No. | G38: 1
A41: 7.1.6 | B41: PSL 8.2.17 | C41: Supply of a chlorination tank with all associated dosing fittings & pipework | F41: No. | G41: 1
A43: TOTAL CARRIED TO SUMMARY

Sheet 1200LB
A1: SECTION 1200 PART LB: BEDDING (PIPES)
A2: ITEM NO | B2: PAY ITEM | C2: DESCRIPTION | G2: UNIT | H2: QTY | I2: RATE | J2: AMOUNT
J3: =+IF(I3*H3=0,"",I3*H3) -> 
A4: 8.1 | B4: 8.2 | C4: SCHEDULED ITEMS
A6: 8.1.1 | B6: 8.2.1 | C6: Provision of Bedding from Trench Excavation
C7: a) | D7: Selected Granular material | G7: m³ | H7: 1250
C8: b) | D8: Selected Fill Material | G8: m³ | H8: 1250
A10: 8.1.2 | B10: 8.2.2 | C10: Supply only of bedding by Importation
A11: 8.1.2.1 | B11: 8.2.2.1 | C11: From other necessary excavations (Provisional)
C12: a) | D12: Selected Granular material | G12: m³ | H12: 1250
C13: b) | D13: Selected Fill Material | G13: m³ | H13: 1250
A15: 8.1.3 | B15: 8.2.4 | C15: Encasing of Pipes in Concrete
C16: a) | D16: 160 mm Diameter @ 20 Mpa | G16: m³ | H16: 3
C17: b) | D17: 200 mm Diameter @ 20 Mpa | G17: m³ | H17: 50
A41: TOTAL CARRIED TO SUMMARY

Sheet 1200LE
A1: SECTION 1200 PART LE: STORMWATER DRAINAGE
A2: ITEM NO | B2: PAY ITEM | C2: DESCRIPTION | F2: UNIT | G2: QTY | H2: RATE | I2: AMOUNT
I3: =+IF(H3*G3=0,"",H3*G3) -> 
A4: 9.1 | B4: 8.2 | C4: SCHEDULED ITEMS
A6: 9.1.4 | B6: 8.2.9 | C6: Supply and Install Manhole, Catchpits, and the like
C8: a) | D8: 230mm thick Brickwork
D10: 1) | E10: Grid Inlets | F10: m² | G10: 40.0
C12: b) | D12: 15mm Plaster
D13: 1) | E13: Grid Inlet | F13: m² | G13: 40.0
C15: c) | D15: Benching
D16: 1) | E16: Grid Inlet | F16: m² | G16: 15.0
C18: e) | D18: 15/19 Mpa Concrete | F18: m³ | G18: 2
A20: 9.1.5 | B20: 8.2.10 | C20: Accessories
C22: a) | D22: Grid Inlets including frames (3.2m x 0.456m) | F22: No | G22: 20
A48: TOTAL CARRIED TO SUMMARY

Sheet PD
A1: SECTION PARTICULAR SPECIFICATION PD: BUILDING WORK
A2: ITEM NO | B2: PAY ITEM | C2: DESCRIPTION | F2: UNIT | G2: QTY | H2: RATE | I2: AMOUNT
I3: =+IF(H3*G3=0,"",H3*G3) -> 
A4: 10.1 | B4: PD 10 | C4: MEASUREMENT AND PAYMENT
C6: A. NEW PACKAGE PLANT BUILDING
A7: 10.1.1 | B7: PD 01 | C7: Brickwork
C8: (a) | D8: Corobrik Montana Travertine Facebrick Standard or similar approved with flush pointed mortar joints | F8: m² | G8: 300
A10: 10.1.2 | B10: PD 03 | C10: Floor Screeds
C11: a) | D11: 30 mm Power Floated Screed | F11: m² | G11: 150
A13: 10.1.3 | B13: PD 04 | C13: Doors and Windows
C14: (a) | D14: D2 Doors | F14: No. | G14: 2
C16: B. OLD PLANT BUILDING | I16: =+IF(H16*G16=0,"",H16*G16) -> 
A17: 10.1.4 | B17: PD 04 | C17: Doors and Windows
C18: (a) | D18: D2 Doors | F18: No. | G18: 2
A20: 10.1.5 | B20: PD 05 | C20: Awnings
C21: (a) | D21: Awnings on existing package plant building doors | F21: No. | G21: 6
A23: 10.1.6 | B23: PD 06 | C23: Electrical control panel
C24: (a) | D24: Repairing the electrical control panel for the package plant in the existing building | F24: No. | G24: 1
A26: 10.1.7 | B26: PD 07 | C26: Telemetry System
C27: (a) | D27: Supply and Installation of new telematics/scada system | F27: No. | G27: 1
C29: C. GUARDHOUSE | I29: =+IF(H29*G29=0,"",H29*G29) -> 
A30: 10.1.8 | B30: PD 01 | C30: Brickwork | I30: =+IF(H30*G30=0,"",H30*G30) -> 
C31: (a) | D31: Corobrik Montana Travertine Facebrick Standard or similar approved with flush pointed mortar joints | F31: m² | G31: 60 | I31: =+IF(H31*G31=0,"",H31*G31) -> 
A33: 10.1.9 | B33: PD 02 | C33: Plasterwork | I33: =+IF(H33*G33=0,"",H33*G33) -> 
C34: a) | D34: One coat cement plaster steel trowelled on brickwork (Min 15mm thick) | F34: m² | G34: 70
A36: 10.1.10 | B36: PD 03 | C36: Floor Screeds | I36: =+IF(H36*G36=0,"",H36*G36) -> 
C37: a) | D37: 30 mm Power Floated Screed | F37: m² | G37: 15
I38: =+IF(H38*G38=0,"",H38*G38) -> 
A39: 10.1.11 | B39: PD 04 | C39: Doors and Windows | I39: =+IF(H39*G39=0,"",H39*G39) -> 
C40: (a) | D40: D1 Doors | F40: No. | G40: 2 | I40: =+IF(H40*G40=0,"",H40*G40) -> 
C41: (b) | D41: i) W1 Windows | F41: No. | G41: 1 | I41: =+IF(H41*G41=0,"",H41*G41) -> 
D42: ii) W2 Windows | F42: No. | G42: 1 | I42: =+IF(H42*G42=0,"",H42*G42) -> 
I53: =+IF(H53*G53=0,"",H53*G53) -> 
A54: TOTAL CARRIED FORWARD
A55: SECTION PARTICULAR SPECIFICATION PD: BUILDING WORK
A56: ITEM NO | B56: PAY ITEM | C56: DESCRIPTION | F56: UNIT | G56: QTY | H56: RATE | I56: AMOUNT
A57: TOTAL BROUGHT FORWARD
A58: 10.1.12 | B58: PD 08 | C58: Painting | I58: =+IF(H58*G58=0,"",H58*G58) -> 
C59: (a) | D59: One coat professional plaster primer and two coats acrylic paint | F59: m² | G59: 70 | I59: =+IF(H59*G59=0,"",H59*G59) -> 
I60: =+IF(H60*G60=0,"",H60*G60) -> 
A61: 10.1.13 | B61: PD 09 | C61: Ceilings
C62: (a) | D62: Plaster-Board Ceiling 9mm Thick
D63: (i) | E63: Suspended Ceiling | F63: m² | G63: 20
A64: 10.1.14 | B64: PD 10 | C64: Roofing
C65: (a) | D65: Roofing | F65: Prov Sum | G65: 1 | H65: R18,000.00 | I65: R18,000.00
C66: (b) | D66: Overheads, charges & profit on a)1) above max limit 10%. | F66: % | H66: =I65 -> R18,000.00
A68: 10.1.15 | B68: PD 11 | C68: Plumbing and Drainage
C69: (a) | D69: Sink
D70: i) | E70: Supply and Install standard ceramic white stand alone basin and pedestal 570 x 480 x 860 mm | F70: No. | G70: 1
C72: (b) | D72: Water Closet
D73: i) | E73: Supply and Install 400mm high, of white glazed fireclay or vitreous china close coupled suite and chromium plated brass thief proof toilet roll holder fitted to wall | F73: No | G73: 1
C75: (c) | D75: Plumbing Works | F75: Sum | G75: 1
A77: 10.1.16 | B77: PD 12 | C77: Electrical Installation | F77: Sum | G77: 1
A79: 10.1.17 | B79: PD 13 | C79: Furniture
C80: (a) | D80: Furniture | F80: Prov. Sum | G80: 1 | H80: R9,000.00 | I80: R9,000.00
C81: (b) | D81: Overheads, charges & profit on a)1) above max limit 10%. | F81: % | H81: =I80 -> R9,000.00
C83: D. PUMP STATION HOUSE
A84: 10.1.14 | B84: PD 01 | C84: Brickwork
C85: (a) | D85: Corobrik Montana Travertine Facebrick Standard or similar approved with flush pointed mortar joints | F85: m² | G85: 60
A87: 10.1.15 | B87: PD 03 | C87: Floor Screeds
C88: a) | D88: 30 mm Power Floated Screed | F88: m² | G88: 20
A90: 10.1.16 | B90: PD 04 | C90: Doors and Windows
C91: (a) | D91: D2 Doors | F91: No. | G91: 1
A93: 10.1.17 | B93: PD 14 | C93: Crawl Beam
C94: (a) | D94: 203 x 133 x 25 I- Section | F94: Sum | G94: 1
A118: TOTAL CARRIED TO SUMMARY

Sheet Summary
A1: SUMMARY OF SCHEDULE OF QUANTITIES
A5: SANS 1200 A | C5: : PRELIMINARY AND GENERAL
A8: SANS 1200 C | C8: : SITE CLEARANCE
A11: SANS 1200 D | C11: : EARTHWORKS
A14: SANS 1200 DB | C14: : EARTHWORKS (PIPE TRENCHES)
A17: SANS 1200 DM | C17: : EARTHWORKS (ROADS, SUBGRADE)
A20: SANS 1200 G | C20: : CONCRETE (STRUCTURAL)
A23: SANS 1200 L | C23: : MEDIUM-PRESSURE PIPELINES.
A26: SANS 1200 LB | C26: : BEDDING (PIPES)
A29: SANS 1200 LE | C29: : STORMWATER DRAINAGE
A32: PARTICULAR SPECIFICATION PD | E32: : BUILDING WORK
A34: SUMMARY OF SCHEDULE OF QUANTITIES
A38: TOTAL FOR SCHEDULE OF QUANTITIES EXCL. VAT
A41: ALLOWANCE FOR CONTINGENCIES @ 10%
A44: TOTAL CONTRACT VALUE EXCL. VAT
A47: VAT @ 15%
A50: TOTAL CONTRACT VALUE TO FORM OF OFFER INCL. VAT

Sheet Sheet1 (hidden)
A1: Sewer Pipe
A2: P1 | B2: 3.422
A3: P2 | B3: 1.508
A4: P3 | B4: 68.739
A5: P4 | B5: 0.653
A6: P5 | B6: 27.383
A7: P6 | B7: 0.662
A8: P7 | B8: 10.872
A9: P8 | B9: 0.419
A10: P9 | B10: 5.545
A11: P10 | B11: 0.208
A12: P11 | B12: 0.331
A13: P12 | B13: 7.911
A14: P13 | B14: 0.662
A15: P14 | B15: 10.72
A16: P15 | B16: 0.662
A17: P16 | B17: 4.951
B18: =SUM(B2:B17) -> 144.648
B19: =B18*1.1 -> 159.1128
